bitfinex/quotes_ETHUSD_20211001
["timestamp","ask_amount","ask_price","bid_price","bid_amount"]
[1633051754138,34.05779252,3011.8,3010.5,0.203]
[1633051754339,34.05779252,3011.8,3010.5,0.46221467]
[1633051754538,1.81819001,3011.0,3010.5,0.46221467]
[1633051754738,1.81819001,3011.0,3010.5,5.44411467]
[1633051755138,1.81819001,3011.0,3010.6,1.0]
[1633051755339,1.81819001,3011.0,3010.6,1.2]
[1633051755742,2.79412115,3011.0,3010.6,1.2]
[1633051755939,2.79412115,3011.0,3010.6,6.18243]
[1633051756339,0.01800984,3010.9,3010.6,6.18243]
[1633051756941,0.01800984,3010.9,3010.6,1.2]
[1633051757544,0.01800984,3010.9,3010.6,0.2]
[1633051758141,0.01800984,3010.9,3010.6,5.18252]
[1633051759744,0.97593114,3011.0,3010.7,0.25914361]
[1633051761746,0.01800952,3010.9,3010.6,5.18252]
[1633051763550,0.01800952,3010.9,3010.6,0.2]
[1633051765150,4.29800114,3011.0,3010.6,0.19482956]
[1633051765353,4.29800114,3011.0,3010.7,0.25914361]
[1633051767152,0.01800951,3010.9,3010.6,0.19482956]
[1633051770817,3.32207,3011.0,3010.7,0.25914361]
[1633051771018,3.32207,3011.0,3010.7,0.45914361]
[1633051772619,3.32207,3011.0,3010.7,0.2]
[1633051772823,0.01800949,3010.9,3010.7,0.2]
[1633051774422,0.01800949,3010.9,3010.8,11.844]
[1633051774624,9.49e-06,3010.9,3010.8,41.17783096]
[1633051774824,9.49e-06,3010.9,3010.8,46.88392942]
[1633051775021,9.49e-06,3010.9,3010.8,21.93481942]
[1633051775623,0.003,3011.5,3011.4,2.00956188]
[1633051775827,0.003,3011.5,3011.4,0.2]
[1633051776023,0.003,3011.5,3011.4,10.586238]
[1633051776223,0.003,3011.5,3011.4,9.85420165]
[1633051776423,0.003,3011.5,3011.4,18.85420165]
[1633051776625,0.003,3011.5,3011.4,15.74227365]
[1633051776824,0.003,3012.0,3011.5,10.55]
[1633051777027,0.003,3012.0,3011.8,0.054066]
[1633051777226,0.003,3012.0,3011.9,5.17941]
[1633051777424,0.003,3012.0,3011.9,6.17941]
[1633051778425,0.003,3012.0,3011.9,7.47341]
[1633051781028,0.003,3012.0,3011.9,5.17941]
[1633051781835,0.003,3012.0,3011.9,6.74123163]
[1633051782026,0.003,3012.0,3011.9,8.55383163]
[1633051782225,0.003,3012.0,3011.9,7.25983163]
[1633051782425,0.003,3012.0,3011.9,16.25983163]
[1633051783627,0.003,3012.0,3011.9,15.99201]
[1633051785830,0.003,3012.0,3011.9,36.66601]
[1633051786035,0.003,3012.0,3011.9,41.66101]
[1633051786631,0.003,3012.0,3011.9,20.98701]
[1633051787031,0.003,3012.0,3011.9,22.28101]
[1633051787431,0.003,3012.0,3011.9,41.66101]
[1633051789834,3.08343412,3013.2,3012.0,10.55]
[1633051790034,3.08343412,3013.2,3012.5,3.3190821]
[1633051790333,3.08343412,3013.2,3012.6,3.37519875]
[1633051790534,3.08343412,3013.2,3012.6,4.37519875]
[1633051790736,3.08343412,3013.2,3012.7,1.60761391]
[1633051790936,3.08343412,3013.2,3012.8,0.2]
[1633051791338,3.08343412,3013.2,3012.8,8.16133692]
[1633051791641,3.08343412,3013.2,3012.8,11.18278692]
[1633051791837,3.08343412,3013.2,3012.8,8.2]
[1633051792638,3.08343412,3013.2,3012.8,0.2]
[1633051792837,3.08343412,3013.2,3012.9,0.26750933]
[1633051793037,3.08343412,3013.2,3013.0,0.2]
[1633051795638,3.08343412,3013.2,3013.0,5.17827]
[1633051796443,3.08343412,3013.2,3013.0,0.2]
[1633051805147,3.03343412,3013.2,3013.0,0.2]
[1633051806147,3.03343412,3013.2,3013.0,5.17823]
[1633051807746,3.03343412,3013.2,3013.0,0.2]
[1633051808147,0.92725456,3013.1,3013.0,0.2]
[1633051808948,3.03343412,3013.2,3013.0,0.2]
[1633051809550,3.03343412,3013.2,3013.0,2.5029]
[1633051809749,3.03343412,3013.2,3013.0,1.5029]
[1633051809951,3.03343412,3013.2,3013.0,2.5029]
[1633051810552,3.03343412,3013.2,3013.0,6.48133]
[1633051810751,3.03343412,3013.2,3013.1,1.0]
[1633051810953,3.03343412,3013.2,3013.1,4.2387985]
[1633051811151,3.03343412,3013.2,3013.1,1.2]
[1633051811553,3.03343412,3013.2,3013.1,9.20978988]
[1633051811752,3.03343412,3013.2,3013.1,6.17783]
[1633051812152,3.03343412,3013.2,3013.1,7.47183]
[1633051812352,3.03343412,3013.2,3013.1,6.17783]
[1633051813155,3.03343412,3013.2,3013.1,7.05151491]
[1633051813356,3.03343412,3013.2,3013.1,8.34551491]
[1633051813954,3.03343412,3013.2,3013.1,7.05151491]
[1633051814556,3.03343412,3013.2,3013.1,8.34551491]
[1633051814955,3.03343412,3013.2,3013.1,27.72551491]
[1633051815657,4.82245908,3013.3,3013.1,27.72551491]
[1633051815658,9.32e-05,3013.3,3013.2,10.55]
[1633051815858,9.32e-05,3013.3,3013.2,27.03]
[1633051816056,9.32e-05,3013.3,3013.2,34.85069]
[1633051816258,9.32e-05,3013.3,3013.2,14.17669]
[1633051816657,9.32e-05,3013.3,3013.2,16.0160638]
[1633051818256,9.32e-05,3013.3,3013.2,8.0160638]
[1633051818656,9.32e-05,3013.3,3013.2,9.3100638]
[1633051818856,9.32e-05,3013.3,3013.2,8.0160638]
[1633051820260,9.32e-05,3013.3,3013.2,16.02726452]
[1633051822266,9.32e-05,3013.3,3013.2,5.18789072]
[1633051823866,9.32e-05,3013.3,3013.2,6.18789072]
[1633051825264,9.32e-05,3013.3,3013.2,7.48189072]
[1633051825467,9.32e-05,3013.3,3013.2,6.18789072]
[1633051826866,9.32e-05,3013.3,3013.2,6.44218881]
[1633051827066,0.0180882,3013.3,3013.2,7.40907185]
[1633051828267,0.0180882,3013.3,3013.2,15.40907185]
[1633051828467,0.0180882,3013.3,3013.2,16.53927185]
[1633051829468,0.0180882,3013.3,3013.2,15.57238881]
[1633051829669,0.0180882,3013.3,3013.2,14.44218881]
[1633051830269,9.32e-05,3013.3,3013.2,15.48189072]
[1633051830529,9.32e-05,3013.3,3013.2,16.78509072]
[1633051830671,9.32e-05,3013.3,3013.2,15.49109072]
[1633051831472,9.32e-05,3013.3,3013.2,14.18789072]
[1633051832272,9.32e-05,3013.3,3013.2,14.44218881]
[1633051832676,0.01808818,3013.3,3013.2,14.44218881]
[1633051833072,0.01808818,3013.3,3013.2,15.86660626]
[1633051834085,4.97819,3013.9,3013.6,6.9874641]
[1633051834274,0.09849561,3014.3,3013.7,1.96498273]
[1633051834275,2.02304358,3014.3,3013.7,1.96498273]
[1633051834474,2.02304358,3014.3,3013.7,0.2]
[1633051834874,0.75650395,3014.0,3013.7,0.2]
[1633051835474,1.294,3013.9,3013.7,0.2]
[1633051835675,1.87624733,3013.8,3013.7,0.2]
[1633051836541,1.87624733,3013.8,3013.2,0.26549881]
[1633051836542,3.17024733,3013.8,3013.2,0.26549881]
[1633051836675,0.026371,3013.5,3013.2,0.26549881]
[1633051836875,5.005921,3013.5,3013.2,0.26549881]
[1633051837277,5.94104024,3013.5,3013.2,0.26549881]
[1633051837474,1.294,3013.4,3013.2,0.26549881]
[1633051837675,5.94104024,3013.5,3013.2,0.26549881]
[1633051838074,0.09862663,3013.4,3013.2,0.01120072]
[1633051838475,8.53542049,3013.3,3013.2,0.01120072]
[1633051838675,1.88542049,3013.3,3013.2,0.01120072]
[1633051839276,3.17942049,3013.3,3013.2,0.01120072]
[1633051839475,0.09862663,3013.4,3013.2,0.01120072]
[1633051840276,5.15,3013.3,3013.2,0.01120072]
[1633051840478,1.76594523,3013.3,3013.2,0.01120072]
[1633051841683,6.30994523,3013.3,3013.2,0.01120072]
[1633051841877,3.05994523,3013.3,3013.2,0.01120072]
[1633051842277,1.76594523,3013.3,3013.2,0.01120072]
[1633051842677,3.05994523,3013.3,3013.2,0.01120072]
[1633051843477,3.05994523,3013.3,3013.2,0.2744963]
[1633051844480,4.05994523,3013.3,3013.2,0.2744963]
[1633051845279,4.05994523,3013.3,3012.8,0.003]
[1633051845280,10.55,3013.1,3012.8,0.003]
[1633051845549,10.55,3013.1,3012.5,0.003]
[1633051845550,10.60192781,3012.9,3012.5,0.003]
[1633051845683,10.60192781,3012.9,3012.2,0.003]
[1633051845684,15.58310781,3012.9,3012.2,0.003]
[1633051845882,11.0,3012.8,3012.0,0.006]
[1633051846080,1.0,3012.8,3011.7,6.64056]
[1633051846478,0.05192781,3012.9,3012.0,2.00322407]
[1633051846479,2.00627958,3012.4,3012.0,2.00322407]
[1633051846883,2.00627958,3012.4,3012.1,0.003]
[1633051847078,2.00627958,3012.4,3012.2,3.32034]
[1633051847279,2.00627958,3012.4,3011.8,0.006]
[1633051847479,2.00627958,3012.4,3012.3,0.003]
[1633051847881,2.00627958,3012.4,3011.8,0.006]
[1633051848078,4.98163,3012.1,3011.8,0.006]
[1633051848542,0.88510522,3012.0,3011.8,0.006]
[1633051849083,1.01925807,3012.0,3011.9,0.13201116]
[1633051849480,2.75539302,3012.0,3011.9,0.13801116]
[1633051849680,2.85421629,3012.0,3011.9,0.13801116]
[1633051850883,4.14821629,3012.0,3011.9,0.13801116]
[1633051851084,5.14821629,3012.0,3011.9,0.13801116]
[1633051851683,6.58034291,3012.0,3011.9,0.13801116]
[1633051851884,5.14821629,3012.0,3011.9,0.13801116]
[1633051852482,11.14821629,3012.0,3011.9,0.13801116]
[1633051854183,5.14821629,3012.0,3011.9,0.13801116]
[1633051854383,3.85421629,3012.0,3011.9,0.13801116]
[1633051854582,3.72006344,3012.0,3011.9,0.006]
[1633051854983,3.72006344,3012.0,3011.5,0.009]
[1633051855184,1.0,3011.9,3011.5,0.009]
[1633051855384,5.98173,3011.9,3011.5,0.009]
[1633051855585,5.98173,3011.9,3011.2,1.96164295]
[1633051855783,5.98173,3011.9,3011.3,0.009]
[1633051856185,4.98173,3011.9,3011.3,0.009]
[1633051856584,0.09882327,3012.0,3011.3,0.009]
[1633051857184,0.09882327,3012.0,3011.4,0.2]
[1633051857586,0.09882327,3012.0,3011.7,0.74179197]
[1633051857989,0.09882327,3012.0,3011.8,0.006]
[1633051858184,5.08051327,3012.0,3011.8,0.006]
[1633051858384,5.08051327,3012.0,3011.6,0.2]
[1633051858385,5.08051327,3012.0,3011.7,0.006]
[1633051858587,0.09882327,3012.0,3011.7,0.006]
[1633051859586,5.008291,3011.9,3011.7,0.006]
[1633051859985,5.008291,3011.9,3011.8,0.13203912]
[1633051859986,5.1424257,3011.9,3011.8,0.13203912]
[1633051860385,5.1424257,3011.9,3011.8,0.13803912]
[1633051863853,5.1424257,3011.9,3011.8,1.43203912]
[1633051864052,2.48,3012.8,3012.0,1.36552142]
[1633051864250,2.48,3012.8,3012.7,0.077772]
[1633051864450,2.48,3012.8,3012.7,0.277772]
[1633051864650,2.0106654,3013.1,3012.7,0.277772]
[1633051865050,2.0106654,3013.1,3013.0,2.34706315]
[1633051865249,2.0106654,3013.1,3013.0,2.54706315]
[1633051865453,2.0106654,3013.1,3013.0,3.84106315]
[1633051865652,2.08697014,3013.1,3013.0,3.84106315]
[1633051865851,2.08697014,3013.1,3013.0,3.42121144]
[1633051866052,2.08697014,3013.1,3013.0,2.42121144]
[1633051866251,2.08697014,3013.1,3013.0,3.42121144]
[1633051866453,2.08697014,3013.1,3013.0,2.42121144]
[1633051866652,2.08697014,3013.1,3013.0,3.42121144]
[1633051867254,2.08697014,3013.1,3013.0,4.8492075]
[1633051867856,2.08697014,3013.1,3013.0,5.45048403]
[1633051868054,2.08697014,3013.1,3013.0,10.44548403]
[1633051868255,0.003,3013.5,3013.1,9.3]
[1633051868454,0.003,3013.5,3013.2,1.2]
[1633051868654,0.003,3013.5,3013.3,4.97732]
[1633051868854,0.003,3013.5,3013.4,0.2]
[1633051869156,0.003,3013.5,3013.4,1.2]
[1633051869957,0.003,3013.5,3013.4,0.2]
[1633051870757,0.003,3013.5,3013.4,1.494]
[1633051870957,0.04122809,3013.5,3013.4,2.494]
[1633051876265,0.12006482,3013.5,3013.4,2.494]
[1633051876462,0.08183673,3013.5,3013.4,2.494]
[1633051877064,0.08183673,3013.5,3013.4,1.2]
[1633051877264,1.58736921,3013.5,3013.4,0.2]
[1633051877463,1.58736921,3013.5,3013.0,0.2]
[1633051878063,0.08183673,3013.5,3013.0,0.2]
[1633051878265,0.08183673,3013.5,3013.2,0.95941749]
[1633051878964,0.08183673,3013.5,3013.4,1.54758306]
[1633051879166,0.08183673,3013.5,3013.2,0.95941749]
[1633051879564,3.40023673,3013.5,3013.2,0.95941749]
[1633051879767,3.40023673,3013.5,3013.3,0.2]
[1633051882169,3.40023673,3013.5,3013.4,0.22367177]
[1633051884168,3.40023673,3013.5,3013.4,0.96430948]
[1633051884767,3.40023673,3013.5,3013.4,0.22367177]
[1633051887173,3.32143673,3013.5,3013.4,4.71326357]
[1633051887371,2.52119127,3013.5,3013.4,6.23276357]
[1633051887570,2.52119127,3013.5,3013.4,2.8135]
[1633051887770,2.52119127,3013.5,3013.4,10.5195]
[1633051887771,2.55941141,3013.5,3013.4,10.5195]
[1633051887971,2.55941141,3013.5,3013.4,9.15461]
[1633051888171,2.55941141,3013.5,3013.4,11.97932558]
[1633051888370,2.55941141,3013.5,3013.4,13.27332558]
[1633051889169,2.55941141,3013.5,3013.4,11.97932558]
[1633051890674,2.55941141,3013.5,3013.4,10.10847007]
[1633051891072,2.55941141,3013.5,3013.4,11.40247007]
[1633051891273,0.56773073,3015.0,3013.6,10.55]
[1633051891472,0.009,3015.0,3014.4,0.072095]
[1633051891672,0.009,3015.0,3014.4,1.7928]
[1633051892071,0.72121098,3015.0,3014.4,3.71630661]
[1633051892270,0.72121098,3015.0,3014.4,5.24313821]
[1633051893071,0.02229857,3014.5,3014.4,4.56212479]
[1633051893271,0.08523656,3014.5,3014.4,4.56212479]
[1633051893473,0.08523656,3014.5,3014.4,9.53789479]
[1633051898477,0.06593799,3014.5,3014.4,9.53789479]
[1633051898677,0.06593799,3014.5,3014.4,9.2954016]
[1633051899879,0.06593799,3014.5,3014.4,7.76857]
[1633051900880,0.06593799,3014.5,3014.4,9.33668062]
[1633051902082,0.06593799,3014.5,3014.4,8.33668062]
[1633051903481,0.06593799,3014.5,3014.4,9.33668062]
[1633051904079,0.06593799,3014.5,3014.4,9.57917381]
[1633051904080,0.08523753,3014.5,3014.4,9.57917381]
[1633051905484,0.08523753,3014.5,3014.4,8.57917381]
[1633051906085,0.08523753,3014.5,3014.4,9.57917381]
[1633051906882,0.08523753,3014.5,3014.4,8.01106319]
[1633051907083,0.08523753,3014.5,3014.4,0.44249319]
[1633051909485,0.06593799,3014.5,3014.4,0.2]
[1633051910485,0.06593799,3014.5,3014.4,1.552559]
[1633051910687,0.06593799,3014.5,3014.4,5.3190153]
[1633051910887,0.06593799,3014.5,3014.4,2.042059]
[1633051911085,0.06593799,3014.5,3014.4,3.042059]
[1633051912289,0.06593799,3014.5,3014.4,1.2]
[1633051912491,0.06593799,3014.5,3014.4,0.2]
[1633051913488,0.06593799,3014.5,3014.4,1.2]
[1633051914689,0.06593799,3014.5,3014.4,2.5455]
[1633051915090,0.0852385,3014.5,3014.4,2.78799319]
[1633051915692,0.0852385,3014.5,3014.4,7.78299319]
[1633051918292,0.02230051,3014.5,3014.4,31.50939586]
[1633051918494,0.02230051,3014.5,3014.4,31.7749718]
[1633051918896,0.02230051,3014.5,3014.4,28.72256913]
[1633051919695,0.009,3015.0,3014.6,6.6330728]
[1633051919893,0.009,3015.0,3014.8,4.995]
[1633051920095,0.009,3015.0,3014.9,0.2]
[1633051920552,0.009,3015.0,3014.9,1.2]
[1633051920793,0.02698429,3015.0,3014.9,3.57971588]
[1633051922396,0.006,3015.1,3014.9,28.12099456]
[1633051922596,0.006,3015.1,3015.0,3.24392554]
[1633051922798,0.006,3015.7,3015.0,24.55393]
[1633051922998,0.006,3015.7,3015.3,4.995]
[1633051923300,0.006,3015.7,3015.3,25.935664]
[1633051923561,0.006,3015.7,3015.3,33.559664]
[1633051923698,0.006,3015.7,3015.3,41.559664]
[1633051923901,0.006,3015.7,3015.4,10.5]
[1633051924097,0.006,3015.7,3015.5,5.195]
[1633051924299,0.006,3015.7,3015.5,20.35448]
[1633051924499,0.006,3015.7,3015.5,23.09546725]
[1633051924699,0.006,3015.7,3015.5,24.05947652]
[1633051924903,0.006,3015.7,3015.5,43.43947652]
[1633051925298,0.006,3015.7,3015.5,43.47268218]
[1633051926102,0.006,3015.7,3015.5,43.72037113]
[1633051926103,0.023981,3015.6,3015.5,43.72037113]
[1633051926499,8.1e-05,3015.6,3015.5,43.72037113]
[1633051926700,0.006,3015.8,3015.6,10.83811639]
[1633051926900,0.006,3015.8,3015.7,28.64910271]
[1633051927100,0.006,3017.3,3015.8,10.53777537]
[1633051927302,0.006,3017.3,3016.3,4.995]
[1633051927502,3.28572377,3017.2,3016.3,10.02230768]
[1633051927702,3.28572377,3017.2,3016.3,24.20730768]
[1633051928302,0.009,3017.0,3016.3,11.09294768]
[1633051928502,0.05607145,3016.4,3016.3,11.09294768]
[1633051928704,0.05607145,3016.4,3016.3,9.79894768]
[1633051928904,0.05607145,3016.4,3016.3,9.08605863]
[1633051929102,0.05607145,3016.4,3016.3,6.41605863]
[1633051929304,0.006,3016.9,3016.3,6.41605863]
[1633051929564,0.006,3016.9,3016.3,7.41605863]
[1633051929704,0.006,3016.9,3016.4,4.31435]
[1633051930304,0.006,3016.9,3016.6,0.78898239]
[1633051930704,0.006,3016.9,3016.6,5.76051239]
[1633051931305,0.006,3016.9,3016.6,9.07524689]
[1633051931505,0.006,3016.9,3016.7,0.25636878]
[1633051934105,0.05338559,3016.8,3016.7,1.55586878]
[1633051936911,0.05519175,3016.8,3016.7,2.55586878]
[1633051937110,0.05519175,3016.8,3016.7,2.2995]
[1633051938310,0.05519175,3016.8,3016.7,1.0]
[1633051938571,0.05519175,3016.8,3016.4,3.31435]
[1633051939310,0.05519175,3016.8,3016.4,4.19369604]
[1633051939913,0.05519175,3016.8,3016.5,8.2876852]
[1633051940511,0.05519175,3016.8,3016.5,16.2876852]
[1633051940512,0.55759175,3016.8,3016.5,16.2876852]
[1633051942514,0.55759175,3016.8,3016.6,1.0]
[1633051943116,0.55759175,3016.8,3016.6,20.38]
[1633051943312,0.55759175,3016.8,3016.6,1.0]
[1633051944317,0.55759175,3016.8,3016.6,7.62806]
[1633051948118,0.55759175,3016.8,3016.5,3.3149852]
[1633051949526,0.55759175,3016.8,3016.5,8.2875552]
[1633051949922,0.55759175,3016.8,3016.5,11.3149852]
[1633051950819,0.55759175,3016.8,3016.6,4.97244]
[1633051951218,0.50939175,3016.8,3016.6,4.97244]
[1633051951423,0.50930308,3016.8,3016.7,14.93926354]
[1633051951619,0.50930308,3016.8,3016.7,13.4768842]
[1633051951825,0.50930308,3016.8,3016.7,6.26385454]
[1633051952022,0.009,3017.0,3016.8,18.70503823]
[1633051952221,0.009,3017.0,3016.9,36.14259533]
[1633051952419,0.006,3017.1,3017.0,10.5]
[1633051952621,1.1830146,3018.5,3017.1,12.4632805]
[1633051952822,1.1830146,3018.5,3017.2,0.52222548]
[1633051953023,1.1830146,3018.5,3017.2,9.52222548]
[1633051953224,1.1830146,3018.5,3017.2,28.90222548]
[1633051953424,1.1830146,3018.5,3017.2,34.13804142]
[1633051953623,1.1830146,3018.5,3017.4,0.2044915]
[1633051953824,1.1830146,3018.5,3017.5,14.05151484]
[1633051954024,1.1830146,3018.5,3017.6,0.03971987]
[1633051954222,1.1830146,3018.5,3017.6,1.58780097]
[1633051954423,0.93963012,3018.3,3017.7,2.71346541]
[1633051954624,2.486,3017.9,3017.7,6.69468437]
[1633051954822,2.486,3017.9,3017.8,1.0]
[1633051955224,0.006,3017.9,3017.8,1.0]
[1633051955424,0.006,3017.9,3017.8,2.294]
[1633051955826,0.006,3017.9,3017.8,2.3302032]
[1633051956031,0.006,3017.9,3017.8,21.7102032]
[1633051956225,0.05336738,3017.9,3017.8,1.0]
[1633051956426,0.82829787,3017.6,3017.5,6.6253389]
[1633051957026,0.82829787,3017.6,3017.0,0.003]
[1633051957027,8.40486579,3017.5,3017.0,0.003]
[1633051957230,0.06373226,3017.1,3017.0,0.003]
[1633051957425,1.80103832,3016.5,3016.4,0.006]
[1633051957626,0.80224357,3016.5,3016.1,0.006]
[1633051958226,3.93232055,3016.5,3016.1,0.006]
[1633051958426,0.80224357,3016.5,3016.1,0.006]
[1633051958624,2.23109592,3016.5,3016.1,0.006]
[1633051958827,0.80224357,3016.5,3016.1,0.006]
[1633051959029,1.294,3016.3,3016.1,0.006]
[1633051959226,1.2251,3016.3,3016.1,0.006]
[1633051959426,2.2251,3016.3,3015.6,0.003]
[1633051959688,10.54738,3015.7,3015.6,0.003]
[1633051959890,10.54738,3015.7,3014.9,1.49140906]
[1633051959891,1.54180628,3015.7,3014.9,1.49140906]
[1633051960096,4.13207321,3015.6,3015.0,0.75066214]
[1633051960288,5.68843,3015.7,3015.0,0.75966214]
[1633051960488,30.08919,3016.4,3015.0,0.75966214]
[1633051960489,22.7862,3016.3,3015.1,0.006]
[1633051960887,1.322769,3015.7,3015.1,0.006]
[1633051961087,0.028769,3015.7,3015.1,0.006]
[1633051961488,0.028769,3015.7,3015.1,1.60512658]
[1633051961489,1.96935473,3015.6,3015.1,1.60512658]
[1633051961690,0.028769,3015.7,3015.1,1.60512658]
[1633051961889,0.028769,3015.7,3015.2,0.006]
[1633051962089,0.07617544,3015.7,3015.2,0.006]
[1633051962888,0.04740644,3015.7,3015.3,0.25670647]
[1633051963289,0.04740644,3015.7,3015.4,0.006]
[1633051963489,0.04740644,3015.7,3015.4,3.3224308]
[1633051963890,0.04740644,3015.7,3015.5,2.85594988]
[1633051964292,0.04740644,3015.7,3015.6,0.06287]
[1633051964889,0.04740644,3015.7,3015.6,1.06287]
[1633051965290,0.04740644,3015.7,3015.6,1.003]
[1633051968296,0.04740644,3015.7,3015.6,1.25965242]
[1633051969099,0.56828657,3017.4,3015.6,1.25965242]
[1633051969100,8.97623907,3017.5,3015.6,23.96946704]
[1633051969297,8.97623907,3017.5,3016.2,0.068582]
[1633051969298,11.5828,3017.4,3016.2,0.068582]
[1633051969696,11.5828,3017.4,3016.3,4.9725]
[1633051969897,25.17730252,3017.5,3016.4,1.80626727]
[1633051969898,1.85017977,3016.9,3016.4,1.80626727]
[1633051970098,2.67274526,3016.9,3016.3,4.9725]
[1633051970499,2.67274526,3016.9,3016.5,3.3149345]
[1633051970698,1.294,3016.7,3016.2,8.0]
[1633051970899,2.67274526,3016.9,3016.2,8.0]
[1633051971099,2.67274526,3016.9,3015.9,1.53032076]
[1633051971302,2.67274526,3016.9,3016.0,0.92380514]
[1633051971501,2.67274526,3016.9,3016.0,0.92680514]
[1633051971702,2.67274526,3016.9,3016.0,0.87680514]
[1633051971905,0.031769,3017.0,3016.0,0.003]
[1633051971906,2.48885465,3016.4,3016.0,0.003]
[1633051972304,0.82998907,3016.4,3016.0,0.003]
[1633051972905,0.031769,3017.0,3016.0,0.003]
[1633051973103,4.97424,3016.7,3016.0,0.003]
[1633051973304,0.04739369,3016.4,3016.0,0.003]
[1633051973906,0.04739369,3016.4,3016.1,0.25650382]
[1633051974907,0.04739369,3016.4,3016.2,0.060388]
[1633051975509,0.04739369,3016.4,3016.2,5.033318]
[1633051975706,0.04739369,3016.4,3016.2,5.76728844]
[1633051975905,0.04739369,3016.4,3016.3,1.0]
[1633051977108,0.04739369,3016.4,3016.2,4.97293]
[1633051977310,0.04739369,3016.4,3016.3,1.0]
[1633051977509,0.04739369,3016.4,3016.2,4.97293]
[1633051977909,0.04739369,3016.4,3016.3,1.0]
[1633051979310,0.04739369,3016.4,3016.3,1.2564633]
[1633051979514,0.04739369,3016.4,3016.3,2.5504633]
[1633051979713,0.003,3017.0,3016.3,7.7004633]
[1633051979914,0.003,3017.0,3016.4,0.44538104]
[1633051980113,0.003,3017.0,3016.7,0.062824]
[1633051980313,0.003,3017.0,3016.7,24.72939893]
[1633051980515,0.003,3017.0,3016.8,10.46020267]
[1633051980716,0.003,3017.0,3016.9,19.38]
[1633051980913,0.003,3017.0,3016.9,28.38]
[1633051981115,0.003,3017.0,3016.9,28.92069449]
[1633051981515,0.003,3017.0,3016.9,30.21469449]
[1633051982115,8.40786579,3017.5,3016.9,30.4621305]
[1633051982315,8.40786579,3017.5,3017.4,14.853425]
[1633051982316,1.78164629,3017.5,3017.4,14.853425]
[1633051982522,1.78164629,3017.5,3017.4,32.053095]
[1633051982714,0.006,3017.9,3017.4,33.37920826]
[1633051982914,0.006,3017.9,3017.5,2.09507528]
[1633051983113,0.006,3017.9,3017.5,3.09507528]
[1633051983317,0.006,3017.9,3017.6,0.95661693]
[1633051983514,0.01796832,3017.8,3017.6,23.68299427]
[1633051983714,0.01796832,3017.8,3017.7,0.03187013]
[1633051983914,0.01796832,3017.8,3017.7,1.0]
[1633051984315,0.06533746,3017.8,3017.6,8.0]
[1633051984514,0.06533746,3017.8,3017.0,0.003]
[1633051984716,0.04736914,3017.8,3017.3,3.31413]
[1633051984914,0.04736914,3017.8,3017.7,0.24296373]
[1633051984915,0.64119176,3017.8,3017.7,0.24296373]
[1633051985114,2.486,3017.9,3017.7,0.24296373]
[1633051985314,0.006,3017.9,3017.7,0.24296373]
[1633051987317,0.006,3017.9,3017.7,5.21352373]
[1633051987917,0.006,3017.9,3017.7,8.24296373]
[1633051988817,0.01796742,3017.8,3017.7,8.0]
[1633051989019,0.01796742,3017.8,3017.6,1.8922666]
[1633051989417,0.01796742,3017.8,3017.7,4.97059]
[1633051990217,0.006,3017.9,3017.7,4.97059]
[1633051990418,0.006,3017.9,3017.8,0.24293718]
[1633051992020,0.006,3017.9,3017.8,1.24293718]
[1633051992418,0.006,3017.9,3017.8,9.24293718]
[1633051992818,0.006,3017.9,3017.8,9.98747075]
[1633051993217,0.006,3017.9,3017.8,9.24293718]
[1633051993620,0.006,3017.9,3017.8,1.24293718]
[1633051994018,0.006,3017.9,3017.8,8.24293718]
[1633051994219,0.006,3017.9,3017.8,8.0]
[1633051994420,0.0239671,3017.9,3017.8,8.0]
[1633051995022,0.0239671,3017.9,3017.7,12.97062]
[1633051995623,0.006,3018.2,3017.9,8.75]
[1633051995826,0.006,3018.2,3018.0,3.5023782]
[1633051996023,0.006,3018.2,3018.1,1.0]
[1633051996227,0.006,3018.2,3018.1,1.52806774]
[1633051996425,0.006,3018.2,3018.1,2.41869668]
[1633051996626,0.006,3018.2,3018.1,4.56487653]
[1633051996825,0.006,3018.2,3018.1,4.47177112]
[1633051997025,0.006,3018.2,3018.1,4.96086887]
[1633051997226,0.006,3018.2,3018.1,24.34086887]
[1633051997427,0.006,3018.2,3018.1,32.34086887]
[1633051997628,0.006,3018.2,3018.1,39.4073727]
[1633051997828,0.006,3018.2,3018.1,39.43542978]
[1633051998027,0.006,3018.2,3018.1,39.40633269]
[1633051998227,0.006,3018.2,3018.1,38.96486887]
[1633051998427,0.006,3018.2,3018.1,39.58354899]
[1633051998688,0.0001,3018.4,3018.1,39.49572995]
[1633051998891,0.0001,3018.4,3018.1,38.20172995]
[1633051999088,0.0001,3018.4,3018.2,2.294]
[1633051999289,0.0001,3018.4,3018.3,19.99452622]
[1633051999490,0.0001,3018.4,3018.3,28.99452622]
[1633052000089,0.0001,3018.4,3018.3,35.25675622]
[1633052000289,1.0587146,3018.5,3018.3,35.25675622]
[1633052000489,1.0587146,3018.5,3018.4,1.0]
[1633052000692,1.0087146,3018.5,3018.4,1.0]
[1633052001290,1.0087146,3018.5,3018.3,0.61452622]
[1633052001492,1.0087146,3018.5,3018.2,9.9364976]
[1633052001691,1.0087146,3018.5,3018.3,0.48838821]
[1633052002092,1.0087146,3018.5,3018.2,9.9364976]
[1633052002291,1.0087146,3018.5,3018.4,4.96943]
[1633052003695,1.0087146,3018.5,3018.4,12.96943]
[1633052003894,0.006,3018.6,3018.4,33.701544]
[1633052004094,0.006,3018.6,3018.4,33.407544]
[1633052004292,0.006,3018.6,3018.4,34.0216909]
[1633052004493,0.006,3018.6,3018.5,1.0]
[1633052006895,0.006,3018.6,3018.5,1.25172166]
[1633052007697,0.006,3018.6,3018.5,1.74413937]
[1633052008098,0.006,3018.6,3018.5,21.12413937]
[1633052008297,0.006,3018.6,3018.5,1.74413937]
[1633052009698,0.006,3018.6,3018.5,8.36813937]
[1633052009898,0.006,3018.6,3018.5,27.74813937]
[1633052010096,0.006,3018.6,3018.5,21.12413937]
[1633052010497,0.006,3018.6,3018.5,1.74413937]